bitfinex/quotes_ETHUSD_20240701
["timestamp","ask_amount","ask_price","bid_price","bid_amount"]
[1719867622996,1.65322575,3468.4,3468.3,0.00534223]
[1719867623148,2.15235642,3468.4,3468.3,0.00534223]
[1719867623389,1.65322575,3468.4,3468.3,0.00534223]
[1719867623720,2.15235639,3468.4,3468.3,0.00534223]
[1719867626422,1.65322575,3468.4,3468.3,0.00534223]
[1719867626595,2.15235524,3468.4,3468.3,0.00534223]
[1719867629982,1.65322575,3468.4,3468.3,0.00534223]
[1719867630330,2.15235596,3468.4,3468.3,0.00534223]
[1719867631002,7.91869596,3468.4,3468.3,0.00534223]
[1719867633436,7.91869593,3468.4,3468.3,0.00534223]
[1719867633746,7.41956575,3468.4,3468.3,0.00534223]
[1719867633884,7.91869572,3468.4,3468.3,0.00534223]
[1719867636496,7.9186978,3468.4,3468.3,0.00534223]
[1719867639751,7.41956575,3468.4,3468.3,0.00534223]
[1719867639931,7.91869411,3468.4,3468.3,0.00534223]
[1719867641054,7.41956575,3468.4,3468.3,0.00534223]
[1719867641210,7.91869425,3468.4,3468.3,0.00534223]
[1719867641609,7.29769425,3468.4,3468.3,0.00534223]
[1719867642338,4.41452425,3468.4,3468.3,0.00534223]
[1719867643124,3.91539575,3468.4,3468.3,0.00534223]
[1719867643423,4.41452379,3468.4,3468.3,0.00534223]
[1719867644741,4.41452374,3468.4,3468.3,0.00534223]
[1719867644950,1.23527867,3468.4,3468.3,2.42554223]
[1719867645340,1.44404443,3468.4,3468.3,2.42554223]
[1719867646240,0.94491644,3468.4,3468.3,2.42554223]
[1719867646442,1.44404281,3468.4,3468.3,2.42554223]
[1719867648221,0.94491644,3468.4,3468.3,2.42554223]
[1719867648574,1.44404289,3468.4,3468.3,2.42554223]
[1719867649544,0.94491644,3468.4,3468.3,2.42554223]
[1719867649753,1.44404288,3468.4,3468.3,2.42554223]
[1719867651935,4.32721288,3468.4,3468.3,0.00534223]
[1719867652159,5.11033817,3468.4,3468.3,0.00534223]
[1719867652771,4.61121173,3468.4,3468.3,0.00534223]
[1719867652975,5.11034071,3468.4,3468.3,0.00534223]
[1719867654368,7.99351071,3468.4,3468.3,0.00534223]
[1719867656094,7.99352284,3468.4,3468.3,0.00534223]
[1719867659348,7.99351845,3468.4,3468.3,0.00534223]
[1719867659750,7.99351538,3468.4,3468.3,0.00534223]
[1719867661189,10.0898644,3468.4,3468.3,0.00534223]
[1719867661594,7.49438173,3468.4,3468.3,0.00534223]
[1719867661749,10.08986684,3468.4,3468.3,0.00534223]
[1719867662268,9.59073509,3468.4,3468.3,0.00534223]
[1719867662452,10.08987107,3468.4,3468.3,0.00534223]
[1719867662802,12.44901891,3468.4,3468.3,0.00534223]
[1719867664990,12.44901766,3468.4,3468.3,0.00534223]
[1719867668228,12.44901975,3468.4,3468.3,0.00534223]
[1719867670944,12.44829476,3468.4,3468.3,0.00534223]
[1719867671231,8.78199947,3468.4,3468.3,2.27774223]
[1719867671589,8.28197621,3468.4,3468.3,2.27774223]
[1719867672036,8.28195647,3468.4,3468.3,2.27774223]
[1719867672789,5.39878647,3468.4,3468.3,2.27774223]
[1719867672993,2.83148912,3468.4,3468.3,2.27774223]
[1719867673235,2.83148912,3468.4,3468.3,3.44579645]
[1719867673628,2.33238558,3468.4,3468.3,3.44579645]
[1719867674693,0.23615068,3468.4,3468.3,3.44579645]
[1719867674890,2.33212578,3468.4,3468.3,3.44579645]
[1719867675105,2.0959751,3468.4,3468.3,3.44579645]
[1719867675327,2.3320686,3468.4,3468.3,3.44579645]
[1719867677907,0.2360935,3468.4,3468.3,3.44579645]
[1719867678308,2.09602139,3468.6,3468.3,3.44579645]
[1719867678535,2.09602139,3468.5,3468.3,3.44579645]
[1719867678735,2.09602139,3468.4,3468.3,3.44579645]
[1719867679201,2.33220899,3468.4,3468.3,3.44579645]
[1719867681242,2.33230449,3468.4,3468.3,3.44579645]
[1719867684258,2.33230449,3468.4,3468.3,0.00534223]
[1719867684554,2.8314977,3468.4,3468.3,0.00534223]
[1719867684703,2.83149641,3468.4,3468.3,0.00534223]
[1719867684903,2.83148381,3468.4,3468.3,0.00534223]
[1719867687543,0.73528302,3468.4,3468.3,0.00534223]
[1719867687840,2.83148785,3468.4,3468.3,0.00534223]
[1719867690846,2.83149653,3468.4,3468.3,0.00534223]
[1719867694044,0.2361876,3468.4,3468.3,0.00534223]
[1719867694267,2.83149874,3468.4,3468.3,0.00534223]
[1719867697454,2.83152597,3468.4,3468.3,0.00534223]
[1719867697616,2.83152628,3468.4,3468.3,0.00534223]
[1719867697951,2.8315203,3468.4,3468.3,0.00534223]
[1719867700458,0.2361876,3468.4,3468.3,0.00534223]
[1719867700819,2.83151579,3468.4,3468.3,0.00534223]
[1719867704928,6.53734595,3468.4,3468.3,0.00534223]
[1719867705128,12.39918222,3468.4,3468.3,0.00534223]
[1719867705663,12.89918222,3468.4,3468.3,0.00534223]
[1719867705959,12.27818222,3468.4,3468.3,0.00534223]
[1719867707013,12.27842264,3468.4,3468.3,0.00534223]
[1719867707352,7.32522236,3468.4,3468.3,0.00534223]
[1719867707556,12.27842424,3468.4,3468.3,0.00534223]
[1719867709872,12.89942424,3468.4,3468.3,0.00534223]
[1719867710092,10.54171175,3468.4,3468.3,0.00534223]
[1719867710233,12.89945975,3468.4,3468.3,0.00534223]
[1719867711244,13.10806782,3468.4,3468.3,0.00534223]
[1719867711589,17.71166782,3468.4,3468.3,0.00534223]
[1719867712167,20.59483782,3468.4,3468.3,0.00534223]
[1719867713135,21.14483782,3468.4,3468.3,0.00534223]
[1719867713481,21.14491208,3468.4,3468.3,0.00534223]
[1719867714037,20.52391208,3468.4,3468.3,0.00534223]
[1719867714277,21.14491208,3468.4,3468.3,0.00534223]
[1719867716144,20.52391208,3468.4,3468.3,0.00534223]
[1719867716345,21.14491208,3468.4,3468.3,0.00534223]
[1719867716585,16.19160043,3468.4,3468.3,0.00534223]
[1719867716879,21.14479666,3468.4,3468.3,0.00534223]
[1719867717085,21.1447734,3468.4,3468.3,0.00534223]
[1719867719958,21.14433513,3468.4,3468.3,0.00534223]
[1719867720785,19.54073513,3468.4,3468.3,0.00534223]
[1719867722159,18.91973513,3468.4,3468.3,0.00534223]
[1719867722392,12.20402504,3468.4,3468.3,0.00534223]
[1719867722687,16.65768754,3468.4,3468.3,0.00534223]
[1719867725509,16.65795279,3468.4,3468.3,0.00534223]
[1719867725981,16.6579689,3468.4,3468.3,0.00534223]
[1719867726506,16.1079689,3468.4,3468.3,0.00534223]
[1719867728506,13.2247989,3468.4,3468.3,0.00534223]
[1719867728710,8.14984277,3468.4,3468.3,0.00534223]
[1719867729012,12.6037743,3468.4,3468.3,0.00534223]
[1719867731005,7.9412347,3468.4,3468.3,0.00534223]
[1719867731605,11.89584632,3468.4,3468.3,0.00534223]
[1719867732507,12.39499511,3468.4,3468.3,0.00534223]
[1719867733982,7.44205236,3468.4,3468.3,0.00534223]
[1719867734618,12.39501299,3468.4,3468.3,0.00534223]
[1719867735513,7.9412023,3468.4,3468.3,0.00534223]
[1719867735674,12.39499265,3468.4,3468.3,0.00534223]
[1719867737013,15.27816265,3468.4,3468.3,0.00534223]
[1719867738814,15.48673675,3468.4,3468.3,0.00534223]
[1719867739023,15.27816265,3468.4,3468.3,0.00534223]
[1719867739202,12.13739301,3468.4,3468.3,0.00534223]
[1719867739411,17.09032381,3468.4,3468.3,0.00534223]
[1719867741134,15.48672381,3468.4,3468.3,0.00534223]
[1719867742847,15.48681992,3468.4,3468.3,0.00534223]
[1719867743131,11.08379301,3468.4,3468.3,0.00534223]
[1719867743335,16.03680657,3468.4,3468.3,0.00534223]
[1719867743510,18.91997657,3468.4,3468.3,0.00534223]
[1719867744535,18.42079135,3468.4,3468.3,0.00534223]
[1719867744734,18.91999498,3468.4,3468.3,0.00534223]
[1719867746241,13.96696301,3468.4,3468.3,0.00534223]
[1719867746438,18.92006167,3468.4,3468.3,0.00534223]
[1719867749452,13.96696301,3468.4,3468.3,0.00534223]
[1719867749626,18.92002645,3468.4,3468.3,0.00534223]
[1719867750714,16.03685645,3468.4,3468.3,0.00534223]
[1719867750952,16.10785645,3468.4,3468.3,2.30514223]
[1719867751125,15.28516169,3468.4,3468.3,2.30514223]
[1719867752448,14.66416169,3468.4,3468.3,2.30514223]
[1719867752653,9.71109825,3468.4,3468.3,2.30514223]
[1719867752823,14.66441017,3468.4,3468.3,2.30514223]
[1719867753218,14.66437495,3468.4,3468.3,2.30514223]
[1719867753614,14.66440951,3468.4,3468.3,2.30514223]
[1719867755852,11.80766286,3468.4,3468.3,2.30514223]
[1719867756032,14.66448535,3468.4,3468.3,2.30514223]
[1719867757732,14.66448535,3468.4,3468.3,0.00534223]
[1719867757932,16.19303389,3468.4,3468.3,0.00534223]
[1719867758828,18.96984871,3468.4,3468.3,0.00534223]
[1719867759270,18.96940175,3468.4,3468.3,0.00534223]
[1719867761228,19.59040175,3468.4,3468.3,0.00534223]
[1719867762340,11.86068135,3468.4,3468.3,0.00534223]
[1719867762553,19.59056609,3468.4,3468.3,0.00534223]
[1719867762755,11.86068135,3468.4,3468.3,0.00534223]
[1719867763081,19.59059023,3468.4,3468.3,0.00534223]
[1719867764554,18.96959023,3468.4,3468.3,0.00534223]
[1719867765548,11.23968135,3468.4,3468.3,0.00534223]
[1719867765864,18.96953215,3468.4,3468.3,0.00534223]
[1719867768750,16.19276025,3468.4,3468.3,0.00534223]
[1719867769084,14.66421171,3468.4,3468.3,0.00534223]
[1719867772087,14.66421754,3468.4,3468.3,0.00534223]
[1719867772248,8.89787754,3468.4,3468.3,2.29134223]
[1719867772447,5.68927233,3468.4,3468.3,2.91234223]
[1719867772692,5.18927233,3468.4,3468.3,2.91234223]
[1719867772849,5.18927233,3468.4,3468.3,3.20507645]
[1719867772850,2.83181052,3468.4,3468.3,3.20507645]
[1719867773588,2.33265227,3468.4,3468.3,3.20507645]
[1719867774286,2.83172146,3468.4,3468.3,3.20507645]
[1719867774487,2.33265227,3468.4,3468.3,3.20507645]
[1719867775308,2.33226403,3468.4,3468.3,3.20507645]
[1719867775654,0.2361876,3468.4,3468.3,3.20507645]
[1719867775851,2.33225413,3468.4,3468.3,3.20507645]
[1719867776078,2.09606653,3468.4,3468.3,3.20507645]
[1719867776305,2.32408853,3468.4,3468.3,3.20507645]
[1719867778497,2.32408261,3468.4,3468.3,3.20507645]
[1719867781086,2.32406596,3468.4,3468.3,3.20507645]
[1719867781283,2.32406596,3468.4,3468.3,6.08832645]
[1719867781464,0.228022,3468.4,3468.3,8.97157645]
[1719867781990,7.48,3469.2,3468.9,2.4847]
[1719867782191,2.09567293,3469.1,3469.0,3.609741]
[1719867782381,2.09567293,3469.1,3469.0,4.230741]
[1719867782579,7.48,3469.2,3469.0,4.230741]
[1719867784162,7.48,3469.2,3469.0,3.609741]
[1719867784361,7.48,3469.2,3469.0,2.4847]
[1719867786490,2.88234,3469.4,3469.0,2.4847]
[1719867786690,2.09574542,3469.3,3469.0,2.4847]
[1719867787325,2.88234,3469.4,3469.0,2.4847]
[1719867787498,2.09574223,3469.3,3469.0,2.4847]
[1719867787813,2.88234,3469.4,3469.0,2.4847]
[1719867788025,2.88246,3469.3,3469.0,2.4847]
[1719867789595,0.22075558,3469.2,3469.0,2.4847]
[1719867789813,2.88246,3469.3,3469.0,2.4847]
[1719867790420,0.22075558,3469.2,3469.0,2.4847]
[1719867790627,2.88246,3469.3,3469.0,2.4847]
[1719867791118,0.22075558,3469.2,3469.0,2.4847]
[1719867791413,2.88246,3469.3,3469.0,2.4847]
[1719867791725,0.22075558,3469.1,3469.0,2.4847]
[1719867791895,2.88246,3469.3,3469.0,2.4847]
[1719867792383,0.22075558,3469.2,3469.0,2.4847]
[1719867792724,2.88246,3469.3,3469.0,2.4847]
[1719867792884,0.22075558,3469.1,3469.0,2.4847]
[1719867793087,2.88246,3469.3,3469.0,2.4847]
[1719867793278,0.22075558,3469.1,3469.0,2.4847]
[1719867793480,2.88246,3469.3,3469.0,2.4847]
[1719867793882,0.22075558,3469.2,3469.0,2.4847]
[1719867794278,2.88251,3469.2,3469.0,2.4847]
[1719867794494,0.22075558,3469.1,3469.0,2.4847]
[1719867799319,3.10334558,3469.1,3468.8,2.2949]
[1719867800988,3.10334558,3469.1,3468.8,2.9159]
[1719867802510,3.10334558,3469.1,3468.8,2.2949]
[1719867804010,0.22075558,3469.1,3468.8,2.2949]
[1719867804187,2.88243,3469.3,3468.9,2.9152]
[1719867804519,0.22079223,3469.0,3468.9,2.9152]
[1719867804704,2.88243,3469.3,3468.9,2.9152]
[1719867804904,0.22083073,3469.0,3468.9,2.9152]
[1719867805107,2.88243,3469.3,3468.9,2.9152]
[1719867805305,0.22083073,3469.0,3468.9,2.9152]
[1719867805498,2.88243,3469.3,3468.9,3.91241582]
[1719867805695,0.22083073,3469.0,3468.9,3.91241582]
[1719867805880,2.88228,3469.5,3468.9,3.91241582]
[1719867806088,0.22083073,3469.0,3468.9,3.91241582]
[1719867806299,5.76461,3469.5,3469.0,2.372]
[1719867806503,3.09474094,3469.4,3469.0,2.372]
[1719867806800,0.49898867,3469.3,3469.0,2.372]
[1719867807014,0.49898867,3469.2,3469.0,3.6533615]
[1719867807187,0.49898867,3469.1,3469.0,2.372]
[1719867809938,0.49898941,3469.1,3469.0,2.372]
[1719867813306,0.49898836,3469.1,3469.0,2.372]
[1719867813827,0.49898852,3469.1,3469.0,2.372]
[1719867814314,2.59473847,3469.1,3469.0,2.372]
[1719867816556,2.09574821,3469.1,3469.0,2.372]
[1719867816866,2.59473587,3469.1,3469.0,2.372]
[1719867818867,2.59473587,3469.1,3468.9,0.621]
[1719867819163,2.59473587,3469.0,3468.9,0.621]
[1719867819691,2.8155794,3469.0,3468.9,0.621]
[1719867819825,2.81558322,3469.0,3468.9,0.621]
[1719867823178,2.81558498,3469.0,3468.9,0.621]
[1719867823324,2.81558498,3469.0,3468.8,2.4969]
[1719867823520,2.59475805,3468.9,3468.8,2.4969]
[1719867823825,2.81559061,3468.9,3468.8,2.4969]
[1719867826179,0.22083256,3468.9,3468.8,2.4969]
[1719867826339,3.09374204,3468.9,3468.8,2.4969]
[1719867826668,3.3145746,3468.9,3468.8,2.4969]
[1719867829560,2.81558504,3468.9,3468.8,2.4969]
[1719867829762,0.71982292,3468.9,3468.8,2.4969]
[1719867832845,0.71982281,3468.9,3468.8,2.4969]
[1719867835979,0.22083256,3468.9,3468.8,2.4969]
[1719867836180,2.88251,3469.2,3468.8,2.4969]
[1719867836385,0.22082706,3468.9,3468.8,2.4969]
[1719867836539,0.49898567,3468.9,3468.8,2.4969]
[1719867836745,0.71981273,3468.9,3468.8,2.4969]
[1719867839186,0.71981505,3468.9,3468.8,2.4969]
[1719867840258,0.22082706,3468.9,3468.8,2.4969]
[1719867840789,2.88251,3469.2,3468.8,2.4969]
[1719867840964,0.22082706,3468.9,3468.8,2.4969]
[1719867841167,2.88251,3469.2,3468.8,2.4969]
[1719867841366,0.71980316,3469.1,3468.8,2.4969]
[1719867841581,0.4989761,3469.0,3468.8,2.4969]
[1719867841783,2.88251,3469.2,3468.8,2.4969]
[1719867841956,0.71980856,3469.1,3468.8,2.4969]
[1719867842156,0.4989815,3469.0,3468.8,2.4969]
[1719867842567,0.22082706,3468.9,3468.8,2.4969]
[1719867842771,2.88251,3469.2,3468.8,2.4969]
[1719867842981,0.49898136,3469.1,3468.8,2.4969]
[1719867843203,0.49898136,3469.0,3468.8,2.4969]
[1719867843557,0.22082706,3468.9,3468.8,2.4969]
[1719867844285,2.88251,3469.2,3468.8,2.4969]
[1719867844481,0.22082706,3468.9,3468.8,2.4969]
[1719867844997,0.4989856,3468.9,3468.8,2.4969]
[1719867845233,0.71981196,3468.9,3468.8,2.4969]
[1719867847613,0.71981196,3468.9,3468.7,3.0]
[1719867847818,3.10358706,3468.9,3468.7,3.0]
[1719867857814,0.4989964,3468.8,3468.7,3.0]
[1719867858010,0.71982896,3468.8,3468.7,3.0]
[1719867858242,0.22083256,3468.8,3468.7,3.0]
[1719867858447,0.71982948,3468.8,3468.7,3.0]
[1719867860361,0.22083256,3468.8,3468.7,3.0]
[1719867861662,5.76532,3469.1,3468.7,3.0]
[1719867861860,0.22081056,3468.8,3468.7,3.0]
[1719867862026,5.76532,3469.1,3468.7,3.0]
[1719867862227,0.22080139,3468.8,3468.7,3.0]
[1719867862455,5.76532,3469.1,3468.7,3.0]
[1719867862670,0.22080139,3468.8,3468.7,3.0]
[1719867862826,5.76532,3469.1,3468.7,3.0]
[1719867863027,0.22080139,3468.8,3468.7,3.0]
[1719867863358,3.619552,3469.1,3468.7,3.0]
[1719867863559,0.22080139,3468.8,3468.7,3.0]
[1719867863763,2.88266,3469.1,3468.7,3.0]
[1719867864057,0.49899708,3469.0,3468.7,3.0]
[1719867864261,0.49899708,3468.9,3468.7,3.0]
[1719867864420,2.88266,3469.1,3468.7,3.0]
[1719867864621,0.22080139,3468.8,3468.7,3.0]
[1719867864836,2.88266,3469.1,3468.7,3.0]
[1719867865064,0.22080139,3468.8,3468.7,3.0]
[1719867865235,5.76532,3469.1,3468.7,3.0]
[1719867865434,0.22080139,3468.8,3468.7,3.0]
[1719867865751,5.76532,3469.1,3468.7,3.0]
[1719867865931,0.22080139,3468.8,3468.7,3.0]
[1719867866362,2.88267,3469.0,3468.7,3.0]
[1719867866545,0.22080139,3468.8,3468.7,3.0]
[1719867867037,2.88267,3469.0,3468.7,3.0]
[1719867867256,0.22080139,3468.8,3468.7,3.0]
[1719867867428,2.88267,3469.0,3468.7,3.0]
[1719867867623,0.22080139,3468.8,3468.7,3.0]
[1719867867826,2.88267,3469.0,3468.7,3.0]
[1719867868026,0.22080139,3468.8,3468.7,3.0]
[1719867868253,2.88267,3469.0,3468.7,3.0]
[1719867868439,0.22080139,3468.8,3468.7,3.0]
[1719867868649,2.88267,3469.0,3468.7,3.0]
[1719867868848,0.22080139,3468.8,3468.7,3.0]
[1719867869055,2.88267,3469.0,3468.7,3.0]
[1719867869223,0.22079956,3468.8,3468.7,3.0]
[1719867869428,2.88267,3469.0,3468.7,3.0]
[1719867869671,0.22079956,3468.8,3468.7,3.0]
[1719867869877,2.88267,3469.0,3468.7,3.0]
[1719867870177,0.22079956,3468.8,3468.7,3.0]
[1719867870327,2.88267,3469.0,3468.7,3.0]
[1719867870527,0.22079956,3468.8,3468.7,3.0]
[1719867870724,2.88267,3469.0,3468.7,3.0]
[1719867870958,0.22079956,3468.8,3468.7,3.0]
[1719867871161,2.88267,3469.0,3468.7,3.0]
[1719867871388,0.22079956,3468.8,3468.7,3.0]
[1719867871680,2.88267,3469.0,3468.7,3.0]
[1719867871830,0.22080139,3468.8,3468.7,3.0]
[1719867872143,2.88267,3469.0,3468.7,3.0]
[1719867872344,0.22080139,3468.8,3468.7,3.0]
[1719867872542,2.88267,3469.0,3468.7,3.0]
[1719867872866,0.49899693,3468.9,3468.7,3.0]
[1719867873032,0.22080139,3468.9,3468.7,3.0]
[1719867874076,2.88258,3469.2,3468.7,3.0]
[1719867874255,0.22080139,3468.8,3468.7,3.0]
[1719867874575,2.88258,3469.2,3468.7,3.0]
[1719867874785,0.22080139,3468.8,3468.7,3.0]
[1719867874929,4.119445,3469.2,3468.7,3.0]
[1719867874930,2.88258,3469.2,3468.7,3.0]
[1719867875131,0.22080506,3468.8,3468.7,3.0]
[1719867875635,2.88258,3469.2,3468.7,3.0]
[1719867875940,0.22080506,3468.8,3468.7,3.0]
[1719867876146,2.88258,3469.2,3468.7,3.0]
[1719867876348,0.22080506,3468.8,3468.7,3.0]
[1719867876530,2.88258,3469.2,3468.7,3.0]
[1719867876736,0.22080506,3468.8,3468.7,3.0]
[1719867876967,3.38258,3469.2,3468.7,3.0]
[1719867877138,0.22080506,3468.8,3468.7,3.0]
[1719867877534,2.88258,3469.2,3468.7,3.0]
[1719867877742,0.22080506,3468.8,3468.7,3.0]
[1719867878056,0.22080689,3468.8,3468.7,3.0]
[1719867878253,2.88258,3469.2,3468.7,3.0]
[1719867878441,0.22080689,3468.8,3468.7,3.0]
[1719867878640,2.88258,3469.2,3468.7,3.0]
[1719867878887,0.22080689,3468.8,3468.7,3.0]
[1719867879070,2.88258,3469.2,3468.7,3.0]
[1719867879373,0.22080873,3468.8,3468.7,3.0]
[1719867879891,3.38258,3469.2,3468.7,3.0]
[1719867880096,0.22080873,3468.8,3468.7,3.0]
[1719867880370,3.38258,3469.2,3468.7,3.0]
[1719867880579,0.22080873,3468.8,3468.7,5.88292]
[1719867880740,3.38258,3469.2,3468.7,5.88292]
[1719867880941,0.22080873,3468.8,3468.7,5.88292]
[1719867881148,2.88258,3469.2,3468.7,5.88292]
[1719867881402,0.22080873,3468.8,3468.7,5.88292]
[1719867881545,2.88258,3469.2,3468.7,5.88292]
[1719867881864,0.49899535,3469.1,3468.7,5.88292]
[1719867882067,0.49899535,3469.0,3468.7,5.88292]
[1719867882475,0.22081056,3468.9,3468.7,5.88292]
[1719867882694,0.49899535,3468.9,3468.7,5.88292]
[1719867882883,0.22081056,3468.8,3468.7,5.88292]
[1719867883084,2.88258,3469.2,3468.7,5.88292]
[1719867883285,0.22081239,3468.8,3468.7,5.88292]
[1719867883489,2.88258,3469.2,3468.7,5.88292]
[1719867883774,0.22081239,3468.8,3468.7,5.88292]
[1719867883991,2.88258,3469.2,3468.7,5.88292]
[1719867884194,0.22081239,3468.8,3468.7,5.88292]
[1719867884394,2.88258,3469.2,3468.7,5.88292]
[1719867884599,0.22081239,3468.8,3468.7,5.88292]
[1719867884759,0.49899608,3469.1,3468.7,5.88292]
[1719867884959,0.22081239,3468.8,3468.7,5.88292]
[1719867885159,2.88258,3469.2,3468.7,5.88292]
[1719867885359,0.22081239,3468.8,3468.7,5.88292]
[1719867885580,2.88258,3469.2,3468.7,5.88292]
[1719867885780,0.22081239,3468.8,3468.7,5.88292]
[1719867885982,2.88258,3469.2,3468.7,5.88292]
[1719867886295,4.95190651,3469.1,3468.7,5.88292]
[1719867886604,2.59477555,3469.0,3468.7,5.88292]
[1719867886904,2.59477555,3468.9,3468.7,5.88292]
[1719867887201,2.09578047,3468.8,3468.7,5.88292]
[1719867887595,2.09578462,3468.8,3468.7,5.88292]
[1719867887769,0.22081056,3468.8,3468.7,5.88292]
[1719867888296,2.31659675,3468.8,3468.7,5.88292]
[1719867888995,2.31659675,3468.8,3468.7,3.0]
[1719867890795,2.31659462,3468.8,3468.7,3.0]
[1719867891004,2.31659423,3468.8,3468.7,3.0]
[1719867893869,0.22081056,3468.8,3468.7,3.0]
[1719867894068,2.09576871,3468.8,3468.7,3.0]
[1719867894301,0.22081606,3468.8,3468.7,3.0]
[1719867894517,2.09576871,3469.0,3468.7,3.0]
[1719867894799,2.59476169,3468.9,3468.7,3.0]
[1719867895001,2.31658477,3468.8,3468.7,3.0]
[1719867897220,0.22081606,3468.8,3468.7,3.0]
[1719867897529,4.45234751,3469.1,3468.7,3.0]
[1719867897720,0.22081606,3468.8,3468.7,3.0]
[1719867897902,2.09577884,3468.9,3468.7,3.0]
[1719867898107,2.3165949,3468.8,3468.7,3.0]
[1719867900427,0.22081606,3468.8,3468.7,3.0]
[1719867900729,4.45239478,3469.1,3468.7,3.0]
[1719867900943,0.22081606,3468.8,3468.7,3.0]
[1719867901241,2.31658118,3468.8,3468.7,3.0]
[1719867902637,0.29658118,3468.8,3468.7,9.097412]
[1719867902943,0.2134573,3468.8,3468.7,9.097412]
[1719867903121,2.88227,3469.5,3468.8,2.88276]
[1719867903322,0.49896848,3469.4,3468.8,2.88276]
[1719867903525,0.49896848,3469.3,3468.8,2.88276]
[1719867903828,0.49896681,3469.2,3468.8,2.88276]
[1719867904033,0.49896681,3469.1,3468.8,2.88276]
[1719867904192,2.88227,3469.5,3468.8,2.88276]
[1719867904391,0.71242185,3469.4,3468.8,2.88276]
[1719867904632,0.49896455,3469.3,3468.8,2.88276]
[1719867904936,0.2134628,3469.2,3468.8,2.88276]
[1719867905132,0.2134628,3469.2,3468.8,3.64481056]
[1719867905318,2.88227,3469.5,3468.8,3.64481056]
[1719867905523,0.2134628,3469.1,3468.8,2.88276]
[1719867905699,5.7646,3469.5,3468.8,2.88276]
[1719867905899,0.2134628,3469.0,3468.8,2.88276]
[1719867906102,5.7646,3469.5,3468.8,2.88276]
[1719867906408,0.21347196,3468.9,3468.8,2.88276]
[1719867906639,5.7646,3469.5,3468.8,2.88276]
[1719867906640,5.7646,3469.5,3468.8,3.999438]
[1719867906935,0.21347196,3468.9,3468.8,2.88276]
[1719867907133,5.7646,3469.5,3468.8,2.88276]
[1719867907307,0.21347196,3468.9,3468.8,2.88276]
[1719867907510,5.7646,3469.5,3468.8,2.88276]
[1719867907710,0.21347196,3468.9,3468.8,2.88276]
[1719867907911,5.7646,3469.5,3468.8,3.999438]
[1719867908127,0.21347196,3468.9,3468.8,2.88276]
[1719867908297,5.7646,3469.5,3468.8,2.88276]
[1719867908499,0.21347196,3468.9,3468.8,2.88276]
[1719867908699,2.88234,3469.4,3468.8,2.88276]
[1719867908929,0.21347196,3468.9,3468.8,2.88276]
[1719867909152,2.88234,3469.4,3468.8,3.999438]
[1719867909353,0.21347196,3468.9,3468.8,2.88276]
[1719867909521,2.88234,3469.4,3468.8,2.88276]
[1719867909730,0.21347196,3468.9,3468.8,2.88276]
[1719867910048,2.88234,3469.4,3468.8,2.88276]
[1719867910226,0.21347196,3468.9,3468.8,2.88276]
[1719867910429,2.88234,3469.4,3468.8,3.999438]
[1719867910629,0.21347196,3468.9,3468.8,2.88276]
[1719867910836,0.21347196,3469.3,3468.8,2.88276]
[1719867915752,2.88226,3469.5,3468.9,2.31674795]
[1719867915960,0.2134738,3469.2,3468.9,2.31674795]
[1719867916154,2.88226,3469.5,3468.9,2.31674795]
[1719867916315,0.2134738,3469.1,3468.9,2.31674795]
[1719867916523,2.88226,3469.5,3468.9,6.30774075]
[1719867916728,0.21347196,3469.0,3468.9,5.19949795]
[1719867916925,0.49895655,3469.4,3468.9,5.19949795]
[1719867917135,0.21347196,3469.0,3468.9,5.19949795]
[1719867917337,0.49895655,3469.4,3468.9,5.19949795]
[1719867917554,0.2134738,3469.0,3468.9,5.19949795]
[1719867917763,0.49895655,3469.4,3468.9,6.30773975]
[1719867918054,0.2134738,3469.0,3468.9,5.19949795]
[1719867918645,2.88226,3469.5,3468.9,5.19949795]
[1719867918956,0.5,3469.5,3468.9,5.19949795]
[1719867919169,0.2134738,3469.4,3468.9,5.19949795]
[1719867919576,2.88218,3469.6,3468.9,5.19949795]
[1719867919876,0.2134738,3469.3,3468.9,5.19949795]
[1719867920078,0.7134738,3469.5,3469.1,3.0]
[1719867920378,0.5,3469.5,3469.2,2.3332]
[1719867920572,0.21354708,3469.4,3469.2,2.3332]
[1719867920780,0.21354708,3469.4,3469.2,3.44881756]
[1719867920940,2.8821,3469.7,3469.2,3.44881756]
[1719867921136,0.21358188,3469.3,3469.2,2.3332]
[1719867921341,2.8821,3469.7,3469.2,2.3332]
[1719867921578,0.21358188,3469.3,3469.2,2.3332]
[1719867921750,0.5,3469.6,3469.2,2.3332]
[1719867921951,0.21358188,3469.3,3469.2,2.3332]
[1719867922279,0.5,3469.6,3469.2,3.443053]
[1719867922447,0.21358188,3469.3,3469.2,3.443053]
[1719867922872,0.15636411,3469.3,3469.2,3.443053]
[1719867923056,0.21358188,3469.3,3469.2,3.443053]
[1719867923380,0.36994599,3469.3,3469.2,3.443053]
[1719867923580,0.15636411,3469.3,3469.2,3.443053]
[1719867923763,0.21358188,3469.3,3469.2,3.443053]
[1719867923970,0.15636411,3469.3,3469.2,3.443053]
[1719867924170,0.21358188,3469.3,3469.2,3.443053]
[1719867924372,3.3821,3469.7,3469.2,3.443053]
[1719867924570,0.21358188,3469.3,3469.2,3.443053]
[1719867924880,14.96548,3470.0,3469.3,5.26016]
[1719867924881,7.48,3470.0,3469.3,5.26016]
[1719867925086,0.5,3469.7,3469.5,2.3778]
[1719867925258,7.48,3470.0,3469.5,5.3778]
[1719867925585,0.65637711,3469.9,3469.5,5.4354392]
[1719867925782,0.15637711,3469.8,3469.5,8.3176892]
[1719867926082,7.48,3470.0,3469.5,8.3176892]
[1719867926278,0.15637814,3469.9,3469.5,8.3176892]
[1719867926578,0.15637814,3469.9,3469.6,2.3778]
[1719867926778,2.88149,3470.5,3469.7,0.05763296]
[1719867927079,0.15638678,3470.4,3469.9,8.23922]
[1719867927284,0.15638678,3470.3,3469.9,8.23922]
[1719867927483,0.5,3470.3,3469.9,8.23922]
[1719867927987,2.88129,3470.7,3469.9,8.23922]
[1719867928203,0.5,3470.4,3469.9,8.23922]
[1719867930806,0.5,3470.4,3469.9,5.3573]
[1719867930969,0.5,3470.4,3470.3,8.76318]